[Event "Hunan Belt and Road Open 2019"]
[Site "Hunan"]
[Date "2019.08.04"]
[Round "7.16"]
[White "Yu, Ruiyuan"]
[Black "Wen, Yang"]
[Result "1/2-1/2"]
[ECO "C54"]
[WhiteElo "2464"]
[BlackElo "2586"]
[Annotator "ChessBase"]
[PlyCount "84"]
[EventDate "2019.07.29"]
[EventType "swiss"]
[EventCountry "CHN"]
[SourceTitle "playchess.com"]
[Source "ChessBase"]
[SourceQuality "1"]
[TimeControl "5400+30"]

1. e4 {[%emt 0:00:15]} e5 {[%emt 0:00:00]} 2. Nf3 {[%emt 0:00:10]} Nc6 {[%emt 0:00:00]} 3. Bc4 {[%emt 0:00:06]} Bc5 {[%emt 0:00:12]} 4. c3 {[%emt 0:00:29]} Nf6 {[%emt 0:00:05]} 5. d4 {[%emt 0:00:14]} exd4 {[%emt 0:00:04]} 6. e5 {[%emt 0:00:05]} d5 {[%emt 0:00:03]} 7. Bb5 {[%emt 0:00:06]} Ne4 {[%emt 0:00:04]} 8. cxd4 {[%emt 0:00:06]} Bb6 {[%emt 0:00:03]} 9. Nc3 {[%emt 0:00:06]} O-O {[%emt 0:00:22]} 10. Be3 {[%emt 0:00:06]} Bg4 {[%emt 0:00:04]} 11. h3 {[%emt 0:00:07]} Bh5 {[%emt 0:00:07]} 12. Qc2 {[%emt 0:00:07]} Nxc3 {[%emt 0:05:05]} 13. bxc3 {[%emt 0:05:10]} f6 {[%emt 0:03:40]} 14. exf6 {[%emt 0:07:06]} Qxf6 {[%emt 0:00:49]} 15. Be2 {[%emt 0:04:00]} Bxf3 {[%emt 0:04:48]} 16. Bxf3 {[%emt 0:03:04]} Ne7 {[%emt 0:00:00]} 17. O-O {[%emt 0:11:03]} c6 {[%emt 0:00:00]} 18. Bg4 {[%emt 0:03:35]} Nf5 {[%emt 0:00:00]} 19. Rae1 {[%emt 0:14:38]} Nxe3 {[%emt 0:17:44]} 20. Rxe3 {[%emt 0:01:41]} c5 {[%emt 0:29:04]} 21. dxc5 {[%emt 0:12:38]} Bxc5 22. Rd3 {[%emt 0:05:02]} Rad8 23. Bf3 {[%emt 0:05:12]} Kh8 {[%emt 0:04:06]} 24. Rxd5 {[%emt 0:01:12]} Rxd5 {[%emt 0:00:00]} 25. Bxd5 {[%emt 0:00:00]} b6 26. Be4 {[%emt 0:01:59]} Qe5 {[%emt 0:02:07]} 27. Qd3 {[%emt 0:01:04]} g6 {[%emt 0:02:30]} 28. g3 {[%emt 0:00:40]} Qe6 {[%emt 0:00:00]} 29. c4 {[%emt 0:00:48]} Qf6 {[%emt 0:00:00]} 30. Kg2 {[%emt 0:01:44]} Qb2 {[%emt 0:00:00]} 31. Qc2 {[%emt 0:00:10]} Qxc2 {[%emt 0:00:00]} 32. Bxc2 {[%emt 0:00:02]} Rd8 {[%emt 0:00:00]} 33. Rd1 {[%emt 0:05:13]} Rxd1 {[%emt 0:00:49]} 34. Bxd1 {[%emt 0:00:06]} g5 {[%emt 0:00:04]} 35. Bg4 {[%emt 0:00:47]} Kg7 {[%emt 0:00:06]} 36. Bc8 {[%emt 0:00:05]} h6 {[%emt 0:00:05]} 37. Ba6 {[%emt 0:00:06]} Kf6 {[%emt 0:00:04]} 38. Kf3 {[%emt 0:00:27]} Ke5 {[%emt 0:00:16]} 39. h4 {[%emt 0:01:03]} gxh4 {[%emt 0:01:17]} 40. gxh4 {[%emt 0:00:15]} Kf5 {[%emt 0:00:17]} 41. Bc8+ {[%emt 0:00:37]} Ke5 {[%emt 0:00:07]} 42. Kg3 {[%emt 0:00:05]} a5 {[%emt 0:00:38]} 1/2-1/2

[Event "Hunan Belt and Road Open 2019"]
[Site "Hunan"]
[Date "2019.08.04"]
[Round "7.17"]
[White "Motylev, Alexander"]
[Black "Liu, Yan"]
[Result "1/2-1/2"]
[ECO "C43"]
[WhiteElo "2654"]
[BlackElo "2516"]
[Annotator "ChessBase"]
[PlyCount "48"]
[EventDate "2019.07.29"]
[EventType "swiss"]
[EventCountry "CHN"]
[SourceTitle "playchess.com"]
[Source "ChessBase"]
[SourceQuality "1"]
[TimeControl "5400+30"]

1. e4 {[%emt 0:00:00]} e5 {[%emt 0:00:06]} 2. Nf3 {[%emt 0:00:00]} Nf6 {[%emt 0:01:28]} 3. d4 {[%emt 0:00:36]} Nxe4 {[%emt 0:00:14]} 4. Bd3 {[%emt 0:00:07]} d5 {[%emt 0:01:48]} 5. Nxe5 {[%emt 0:00:51]} Nd7 {[%emt 0:00:21]} 6. Nc3 {[%emt 0:00:33]} Nxe5 {[%emt 0:06:10]} 7. dxe5 {[%emt 0:00:29]} Nxc3 {[%emt 0:08:51]} 8. bxc3 {[%emt 0:00:24]} c6 {[%emt 0:07:27]} 9. O-O {[%emt 0:01:38]} Bc5 {[%emt 0:01:44]} 10. Rb1 {[%emt 0:16:41]} O-O {[%emt 0:06:34]} 11. Kh1 {[%emt 0:04:23]} b5 {[%emt 0:14:26]} 12. f4 {[%emt 0:06:51]} f5 {[%emt 0:01:59]} 13. exf6 {[%emt 0:01:03]} Qxf6 {[%emt 0:01:28]} 14. f5 {[%emt 0:01:26]} Bd6 {[%emt 0:01:52]} 15. Qg4 {[%emt 0:09:01]} h6 {[%emt 0:13:57]} 16. Bf4 {[%emt 0:20:13]} Bd7 {[%emt 0:03:15]} 17. Bxd6 {[%emt 0:10:15]} Qxd6 {[%emt 0:00:04]} 18. Rbd1 {[%emt 0:00:10]} Rf7 {[%emt 0:06:02]} 19. Qh4 {[%emt 0:09:03]} Re8 {[%emt 0:03:21]} 20. Qf2 {[%emt 0:02:39]} c5 {[%emt 0:04:41]} 21. c4 {[%emt 0:00:31]} bxc4 {[%emt 0:00:24]} 22. Bxc4 {[%emt 0:00:45]} Re5 {[%emt 0:00:25]} 23. Qg3 {[%emt 0:02:08]} Rf6 {[%emt 0:02:38]} 24. Bd3 {[%emt 0:02:51]} Qe7 {[%emt 0:02:44]} 1/2-1/2

[Event "Hunan Belt and Road Open 2019"]
[Site "Hunan"]
[Date "2019.08.04"]
[Round "7.18"]
[White "Chen, Qi b"]
[Black "Lu, Shanglei"]
[Result "1/2-1/2"]
[ECO "B90"]
[WhiteElo "2414"]
[BlackElo "2619"]
[Annotator "ChessBase"]
[PlyCount "58"]
[EventDate "2019.07.29"]
[EventType "swiss"]
[EventCountry "CHN"]
[SourceTitle "playchess.com"]
[Source "ChessBase"]
[SourceQuality "1"]
[TimeControl "5400+30"]

1. e4 {[%emt 0:02:31]} c5 {[%emt 0:00:00]} 2. Nf3 {[%emt 0:00:08]} d6 {[%emt 0:00:00]} 3. d4 {[%emt 0:00:32]} cxd4 {[%emt 0:00:00]} 4. Nxd4 {[%emt 0:00:02]} Nf6 {[%emt 0:00:00]} 5. Nc3 {[%emt 0:00:02]} a6 {[%emt 0:00:00]} 6. h3 {[%emt 0:00:14]} e5 {[%emt 0:02:52]} 7. Nde2 {[%emt 0:00:06]} h5 {[%emt 0:00:05]} 8. Nd5 {[%emt 0:03:02]} Nxe4 {[%emt 0:02:09]} 9. Be3 {[%emt 0:00:19]} Nd7 {[%emt 0:01:00]} 10. g3 {[%emt 0:00:08]} Nef6 {[%emt 0:00:38]} 11. Nec3 {[%emt 0:00:53]} b5 {[%emt 0:02:40]} 12. Bg2 {[%emt 0:00:11]} Rb8 {[%emt 0:00:58]} 13. Bg5 {[%emt 0:00:27]} b4 {[%emt 0:00:45]} 14. Ne4 {[%emt 0:04:05]} Bb7 {[%emt 0:00:06]} 15. Nexf6+ {[%emt 0:05:19]} gxf6 {[%emt 0:01:38]} 16. Bh4 {[%emt 0:09:45]} Be7 {[%emt 0:09:34]} 17. O-O {[%emt 0:03:07]} Bxd5 {[%emt 0:08:13]} 18. Qxd5 {[%emt 0:00:22]} Qc8 {[%emt 0:15:32]} 19. Rfd1 {[%emt 0:18:11]} Rb6 {[%emt 0:04:36]} 20. Qf3 {[%emt 0:08:47]} Kf8 {[%emt 0:06:51]} 21. Rac1 {[%emt 0:08:06]} Kg7 {[%emt 0:02:22]} 22. c3 {[%emt 0:01:14]} b3 {[%emt 0:16:11]} 23. axb3 {[%emt 0:03:29]} Rxb3 {[%emt 0:00:10]} 24. Rd2 {[%emt 0:01:42]} a5 {[%emt 0:07:16]} 25. Rcd1 {[%emt 0:06:23]} Qc7 {[%emt 0:02:24]} 26. Qf5 {[%emt 0:03:22]} a4 {[%emt 0:01:59]} 27. f4 {[%emt 0:04:22]} Rh6 {[%emt 0:05:11]} 28. Kh2 {[%emt 0:01:21]} a3 {[%emt 0:02:02]} 29. bxa3 {[%emt 0:00:33]} Rxa3 {[%emt 0:00:08]} 1/2-1/2

[Event "Hunan Belt and Road Open 2019"]
[Site "Hunan"]
[Date "2019.08.04"]
[Round "7.19"]
[White "Ju, Wenjun"]
[Black "Xu, Zhihang"]
[Result "1-0"]
[ECO "E08"]
[WhiteElo "2595"]
[BlackElo "2501"]
[Annotator "ChessBase"]
[PlyCount "141"]
[EventDate "2019.07.29"]
[EventType "swiss"]
[EventCountry "CHN"]
[SourceTitle "playchess.com"]
[Source "ChessBase"]
[SourceQuality "1"]
[TimeControl "5400+30"]

1. d4 {[%emt 0:00:00]} Nf6 {[%emt 0:00:00]} 2. c4 {[%emt 0:00:00]} e6 {[%emt 0:00:00]} 3. g3 {[%emt 0:00:00]} d5 {[%emt 0:00:00]} 4. Bg2 {[%emt 0:00:00]} Bb4+ {[%emt 0:00:00]} 5. Bd2 {[%emt 0:00:00]} Be7 {[%emt 0:00:00]} 6. Nf3 {[%emt 0:00:00]} O-O {[%emt 0:00:04]} 7. O-O {[%emt 0:00:00]} Nbd7 {[%emt 0:00:03]} 8. Qc2 {[%emt 0:00:00]} c6 {[%emt 0:00:08]} 9. Bf4 {[%emt 0:00:06]} b6 {[%emt 0:00:26]} 10. Rd1 {[%emt 0:00:09]} Bb7 {[%emt 0:00:10]} 11. Ne5 {[%emt 0:00:27]} Nh5 {[%emt 0:00:20]} 12. Bd2 {[%emt 0:00:28]} Nhf6 {[%emt 0:00:09]} 13. cxd5 {[%emt 0:00:04]} cxd5 {[%emt 0:00:23]} 14. Nc6 {[%emt 0:00:04]} Bxc6 {[%emt 0:00:05]} 15. Qxc6 {[%emt 0:00:02]} Qc8 {[%emt 0:00:22]} 16. Qb5 {[%emt 0:01:00]} a6 {[%emt 0:02:23]} 17. Qd3 {[%emt 0:00:04]} b5 {[%emt 0:00:53]} 18. Nc3 {[%emt 0:00:51]} Nb6 {[%emt 0:01:25]} 19. e3 {[%emt 0:06:50]} Qc4 {[%emt 0:05:56]} 20. Qb1 {[%emt 0:00:15]} Qc6 {[%emt 0:04:07]} 21. Rc1 {[%emt 0:04:37]} Qd7 {[%emt 0:00:05]} 22. Ne2 {[%emt 0:02:48]} Bd6 {[%emt 0:02:38]} 23. Be1 {[%emt 0:07:46]} Rfc8 {[%emt 0:01:22]} 24. Qd3 {[%emt 0:00:19]} h6 {[%emt 0:06:34]} 25. f3 {[%emt 0:03:27]} Qa7 {[%emt 0:05:44]} 26. Bf2 {[%emt 0:04:32]} Nfd7 {[%emt 0:03:26]} 27. Bh3 {[%emt 0:12:08]} Qb7 {[%emt 0:00:38]} 28. e4 {[%emt 0:04:19]} Rxc1+ {[%emt 0:06:17]} 29. Rxc1 {[%emt 0:03:06]} dxe4 {[%emt 0:00:05]} 30. fxe4 {[%emt 0:04:56]} Rc8 {[%emt 0:04:21]} 31. Rxc8+ {[%emt 0:03:10]} Qxc8 {[%emt 0:05:20]} 32. b3 {[%emt 0:09:55]} Qd8 {[%emt 0:03:28]} 33. Qc2 {[%emt 0:14:31]} Qc7 {[%emt 0:03:22]} 34. Qxc7 {[%emt 0:00:04]} Bxc7 {[%emt 0:00:02]} 35. Kg2 {[%emt 0:00:51]} Kf8 {[%emt 0:01:20]} 36. Nc1 {[%emt 0:00:31]} Nf6 {[%emt 0:07:45]} 37. Kf3 {[%emt 0:00:03]} Nbd7 {[%emt 0:01:13]} 38. Nd3 {[%emt 0:00:14]} Ke7 {[%emt 0:00:18]} 39. Bf1 {[%emt 0:02:42]} Nb8 {[%emt 0:02:20]} 40. Nc5 {[%emt 0:01:31]} Nfd7 {[%emt 0:04:49]} 41. b4 {[%emt 0:01:20]} Nb6 {[%emt 0:00:38]} 42. Bd3 {[%emt 0:01:48]} Kd6 {[%emt 0:01:36]} 43. Ke2 {[%emt 0:02:25]} Kc6 {[%emt 0:00:08]} 44. h3 {[%emt 0:01:09]} Nc8 {[%emt 0:02:55]} 45. Nb3 {[%emt 0:01:01]} Bb6 {[%emt 0:01:59]} 46. Kf3 {[%emt 0:00:36]} Kc7 {[%emt 0:02:22]} 47. Nc5 {[%emt 0:01:08]} Ne7 {[%emt 0:00:45]} 48. a3 {[%emt 0:01:08]} Kc6 {[%emt 0:01:16]} 49. Be3 {[%emt 0:00:38]} Bc7 {[%emt 0:02:25]} 50. h4 {[%emt 0:00:37]} Bd6 {[%emt 0:01:31]} 51. g4 {[%emt 0:01:13]} Nc8 {[%emt 0:02:00]} 52. h5 {[%emt 0:06:46]} a5 {[%emt 0:01:36]} 53. g5 {[%emt 0:02:54]} hxg5 {[%emt 0:00:22]} 54. Bxg5 {[%emt 0:00:02]} axb4 {[%emt 0:00:35]} 55. axb4 {[%emt 0:00:01]} Kb6 {[%emt 0:00:21]} 56. Bd2 {[%emt 0:01:39]} Nc6 {[%emt 0:00:39]} 57. Bc3 {[%emt 0:00:04]} N8e7 {[%emt 0:02:11]} 58. Be2 {[%emt 0:01:06]} Ng8 {[%emt 0:07:05]} 59. Ke3 {[%emt 0:00:56]} Be7 {[%emt 0:00:58]} 60. Nd7+ {[%emt 0:00:42]} Kc7 {[%emt 0:00:07]} 61. Nc5 {[%emt 0:00:31]} Kb6 {[%emt 0:00:01]} 62. Kd3 {[%emt 0:00:46]} Nh6 {[%emt 0:00:26]} 63. Kc2 {[%emt 0:00:23]} e5 {[%emt 0:03:33]} 64. Nd7+ {[%emt 0:00:10]} Kc7 {[%emt 0:00:00]} 65. Nxe5 {[%emt 0:00:08]} Nxb4+ {[%emt 0:00:08]} 66. Kb3 {[%emt 0:00:09]} Nc6 {[%emt 0:01:34]} 67. Nxc6 Kxc6 {[%emt 0:00:01]} 68. d5+ {[%emt 0:00:31]} Kd6 {[%emt 0:00:03]} 69. Bb4+ {[%emt 0:00:45]} Kd7 {[%emt 0:00:10]} 70. Bxb5+ {[%emt 0:00:02]} Kd8 {[%emt 0:00:04]} 71. d6 {[%emt 0:00:02] Ke8} 1-0

[Event "Hunan Belt and Road Open 2019"]
[Site "Hunan"]
[Date "2019.08.04"]
[Round "7.20"]
[White "Zhao, Zong-Yuan"]
[Black "Peng, Xiongjian"]
[Result "0-1"]
[ECO "C54"]
[WhiteElo "2529"]
[BlackElo "2467"]
[Annotator "ChessBase"]
[PlyCount "56"]
[EventDate "2019.07.29"]
[EventType "swiss"]
[EventCountry "CHN"]
[SourceTitle "playchess.com"]
[Source "ChessBase"]
[SourceQuality "1"]
[TimeControl "5400+30"]

1. e4 {[%emt 0:02:04]} e5 {[%emt 0:00:00]} 2. Nf3 {[%emt 0:00:21]} Nc6 {[%emt 0:00:06]} 3. Bc4 {[%emt 0:00:08]} Nf6 {[%emt 0:00:36]} 4. d3 {[%emt 0:00:06]} Bc5 {[%emt 0:00:11]} 5. c3 {[%emt 0:00:08]} d6 {[%emt 0:00:11]} 6. O-O {[%emt 0:00:21]} O-O {[%emt 0:00:14]} 7. Bg5 {[%emt 0:00:39]} h6 {[%emt 0:00:07]} 8. Bh4 {[%emt 0:00:06]} g5 {[%emt 0:00:11]} 9. Bg3 {[%emt 0:00:05]} a5 {[%emt 0:00:29]} 10. Re1 {[%emt 0:01:32]} g4 {[%emt 0:00:24]} 11. Nfd2 {[%emt 0:19:21]} Nh5 {[%emt 0:03:09]} 12. Nf1 {[%emt 0:00:27]} Qg5 {[%emt 0:10:32]} 13. a4 {[%emt 0:11:10]} Be6 {[%emt 0:05:43]} 14. Na3 {[%emt 0:01:42]} Nxg3 {[%emt 0:06:47]} 15. hxg3 {[%emt 0:20:15]} Bxc4 {[%emt 0:01:19]} 16. Nxc4 {[%emt 0:00:11]} f5 {[%emt 0:00:28]} 17. Nce3 {[%emt 0:02:17]} f4 {[%emt 0:05:06]} 18. gxf4 {[%emt 0:04:17]} exf4 {[%emt 0:02:04]} 19. Nf5 {[%emt 0:00:51]} h5 {[%emt 0:08:50]} 20. d4 {[%emt 0:01:25]} Bb6 {[%emt 0:00:43]} 21. Qb3+ {[%emt 0:08:22]} Kh8 {[%emt 0:01:41]} 22. Qb5 {[%emt 0:05:06]} Ne5 {[%emt 0:09:36]} 23. Kh1 {[%emt 0:13:55]} Rae8 {[%emt 0:09:47]} 24. Rad1 {[%emt 0:03:28]} Re6 {[%emt 0:01:53]} 25. Nh2 {[%emt 0:03:05]} g3 {[%emt 0:00:13]} 26. Qf1 {[%emt 0:00:58]} Rxf5 {[%emt 0:01:31]} 27. fxg3 {[%emt 0:00:35]} Rff6 {[%emt 0:00:31]} 28. dxe5 {[%emt 0:00:17]} fxg3 {[%emt 0:00:22]} 0-1

[Event "Hunan Belt and Road Open 2019"]
[Site "Hunan"]
[Date "2019.08.04"]
[Round "7.21"]
[White "Li, Di"]
[Black "Taher, Yoseph Theolifus"]
[Result "1-0"]
[ECO "D37"]
[WhiteElo "2523"]
[BlackElo "2460"]
[Annotator "ChessBase"]
[PlyCount "39"]
[EventDate "2019.07.29"]
[EventType "swiss"]
[EventCountry "CHN"]
[SourceTitle "playchess.com"]
[Source "ChessBase"]
[SourceQuality "1"]
[TimeControl "5400+30"]

1. d4 {[%emt 0:00:00]} Nf6 {[%emt 0:00:00]} 2. Nf3 {[%emt 0:00:00]} d5 {[%emt 0:00:01]} 3. c4 {[%emt 0:00:17]} e6 {[%emt 0:00:09]} 4. Nc3 {[%emt 0:01:52]} a6 {[%emt 0:00:56]} 5. cxd5 {[%emt 0:00:12]} exd5 {[%emt 0:00:04]} 6. Bg5 {[%emt 0:00:10]} Be6 {[%emt 0:00:08]} 7. Qb3 {[%emt 0:00:12]} b5 {[%emt 0:02:36]} 8. Bxf6 {[%emt 0:00:18]} Qxf6 {[%emt 0:00:31]} 9. a4 {[%emt 0:00:21]} b4 {[%emt 0:00:48]} 10. Nxd5 {[%emt 0:00:29]} Qd8 {[%emt 0:00:13]} 11. e4 {[%emt 0:00:08]} c6 {[%emt 0:00:15]} 12. Qe3 {[%emt 0:00:14]} cxd5 {[%emt 0:00:42]} 13. exd5 {[%emt 0:00:08]} Qxd5 {[%emt 0:00:23]} 14. Rc1 {[%emt 0:00:09]} Be7 {[%emt 0:05:41]} 15. Bd3 {[%emt 0:00:45]} f5 {[%emt 0:12:10]} 16. O-O {[%emt 0:02:32]} Qd6 {[%emt 0:09:31]} 17. Rfe1 {[%emt 0:04:58]} Bd7 {[%emt 0:02:44]} 18. Ne5 {[%emt 0:07:47]} f4 {[%emt 0:08:59]} 19. Qf3 {[%emt 0:06:52]} O-O {[%emt 0:08:59]} 20. Qxa8 {[%emt 0:00:41]} 1-0

[Event "Hunan Belt and Road Open 2019"]
[Site "Hunan"]
[Date "2019.08.04"]
[Round "7.22"]
[White "Chu, Wei Chao"]
[Black "Lei, Tingjie"]
[Result "1-0"]
[ECO "E04"]
[WhiteElo "2406"]
[BlackElo "2505"]
[Annotator "ChessBase"]
[PlyCount "69"]
[EventDate "2019.07.29"]
[EventType "swiss"]
[EventCountry "CHN"]
[SourceTitle "playchess.com"]
[Source "ChessBase"]
[SourceQuality "1"]
[TimeControl "5400+30"]

1. d4 {[%emt 0:00:00]} Nf6 {[%emt 0:00:00]} 2. c4 {[%emt 0:00:00]} e6 {[%emt 0:00:07]} 3. Nf3 {[%emt 0:00:00]} d5 {[%emt 0:00:32]} 4. g3 {[%emt 0:00:00]} dxc4 {[%emt 0:00:58]} 5. Bg2 {[%emt 0:00:05]} Bb4+ {[%emt 0:00:08]} 6. Bd2 {[%emt 0:02:24]} a5 {[%emt 0:00:41]} 7. O-O {[%emt 0:03:04]} O-O {[%emt 0:00:29]} 8. Qc2 {[%emt 0:00:38]} Bxd2 {[%emt 0:00:57]} 9. Nbxd2 {[%emt 0:00:28]} b5 {[%emt 0:01:19]} 10. a4 {[%emt 0:07:20]} c6 {[%emt 0:00:08]} 11. b3 {[%emt 0:00:11]} cxb3 {[%emt 0:03:23]} 12. Nxb3 {[%emt 0:00:49]} Nd5 {[%emt 0:05:50]} 13. e4 {[%emt 0:03:37]} Ne7 {[%emt 0:08:09]} 14. Rfd1 {[%emt 0:10:22]} Nd7 {[%emt 0:11:33]} 15. Ne5 {[%emt 0:01:52]} Nb8 {[%emt 0:23:02]} 16. h4 {[%emt 0:05:58]} f6 {[%emt 0:08:12]} 17. Nd3 {[%emt 0:02:12]} Qb6 {[%emt 0:04:22]} 18. Nbc5 {[%emt 0:05:36]} Kh8 {[%emt 0:08:53]} 19. Nf4 {[%emt 0:16:04]} Na6 {[%emt 0:01:55]} 20. Nfxe6 {[%emt 0:00:55]} Bxe6 {[%emt 0:01:41]} 21. Nxe6 {[%emt 0:00:07]} Rfe8 {[%emt 0:00:23]} 22. h5 {[%emt 0:01:43]} Ng8 {[%emt 0:04:08]} 23. Qb3 {[%emt 0:11:01]} Nh6 {[%emt 0:05:05]} 24. Rac1 {[%emt 0:02:09]} Rac8 {[%emt 0:02:35]} 25. Bh3 {[%emt 0:04:30]} Rb8 {[%emt 0:00:46]} 26. d5 {[%emt 0:00:29]} cxd5 {[%emt 0:05:33]} 27. exd5 {[%emt 0:00:07]} Qd6 {[%emt 0:00:36]} 28. Rc6 {[%emt 0:00:59]} Qb4 {[%emt 0:00:03]} 29. Qd3 {[%emt 0:01:55]} Ra8 {[%emt 0:01:56]} 30. d6 {[%emt 0:01:52]} Nb8 {[%emt 0:00:30]} 31. Rc7 {[%emt 0:00:08]} Rg8 {[%emt 0:00:28]} 32. d7 {[%emt 0:01:35]} Nxd7 {[%emt 0:00:06]} 33. Qxd7 {[%emt 0:00:06]} Qxa4 {[%emt 0:00:50]} 34. Nxg7 {[%emt 0:01:02]} Nf7 {[%emt 0:00:30]} 35. Ne6 {[%emt 0:01:31]} 1-0

[Event "Hunan Belt and Road Open 2019"]
[Site "Hunan"]
[Date "2019.08.04"]
[Round "7.24"]
[White "Fang, Yan"]
[Black "Adhiban, B.."]
[Result "1/2-1/2"]
[ECO "A47"]
[WhiteElo "2424"]
[BlackElo "2665"]
[Annotator "ChessBase"]
[PlyCount "77"]
[EventDate "2019.07.29"]
[EventType "swiss"]
[EventCountry "CHN"]
[SourceTitle "playchess.com"]
[Source "ChessBase"]
[SourceQuality "1"]
[TimeControl "5400+30"]

1. d4 {[%emt 0:00:00]} Nf6 {[%emt 0:01:50]} 2. Nf3 {[%emt 0:00:18]} b6 {[%emt 0:02:14]} 3. g3 {[%emt 0:00:15]} Bb7 {[%emt 0:00:05]} 4. Bg2 {[%emt 0:00:04]} c5 {[%emt 0:00:03]} 5. O-O {[%emt 0:02:02]} cxd4 {[%emt 0:00:08]} 6. Nxd4 {[%emt 0:00:09]} Bxg2 {[%emt 0:00:05]} 7. Kxg2 {[%emt 0:00:03]} Qc8 {[%emt 0:00:04]} 8. b3 {[%emt 0:02:21]} h5 {[%emt 0:03:12]} 9. h4 {[%emt 0:01:29]} Qb7+ {[%emt 0:01:38]} 10. Kg1 {[%emt 0:01:30]} d5 {[%emt 0:00:36]} 11. c4 {[%emt 0:06:15]} dxc4 {[%emt 0:00:45]} 12. bxc4 {[%emt 0:00:02]} g6 {[%emt 0:00:18]} 13. Nc3 {[%emt 0:13:40]} Bg7 {[%emt 0:01:13]} 14. Qa4+ {[%emt 0:01:07]} Qd7 {[%emt 0:23:51]} 15. Ba3 {[%emt 0:12:41]} Qxa4 {[%emt 0:05:23]} 16. Nxa4 {[%emt 0:00:14]} Nfd7 {[%emt 0:00:09]} 17. e3 {[%emt 0:07:56]} O-O {[%emt 0:03:57]} 18. Rac1 {[%emt 0:12:15]} Rc8 {[%emt 0:01:28]} 19. c5 {[%emt 0:02:14]} bxc5 {[%emt 0:01:22]} 20. Nxc5 {[%emt 0:01:55]} Bxd4 {[%emt 0:00:50]} 21. exd4 {[%emt 0:01:06]} Nb6 {[%emt 0:01:47]} 22. Ne4 {[%emt 0:04:29]} Nc6 {[%emt 0:02:38]} 23. Rfd1 {[%emt 0:01:44]} Nd5 {[%emt 0:00:35]} 24. Rc5 {[%emt 0:00:12]} Ncb4 {[%emt 0:03:31]} 25. Bxb4 {[%emt 0:04:27]} Nxb4 {[%emt 0:00:05]} 26. a3 {[%emt 0:05:11]} Rxc5 {[%emt 0:18:45]} 27. dxc5 {[%emt 0:00:27]} Nc6 {[%emt 0:00:01]} 28. Rd7 {[%emt 0:06:42]} Rc8 {[%emt 0:00:01]} 29. Kg2 {[%emt 0:03:54]} Kf8 {[%emt 0:00:27]} 30. Rb7 {[%emt 0:00:38]} Ke8 {[%emt 0:09:57]} 31. a4 {[%emt 0:03:02]} a5 {[%emt 0:00:16]} 32. Nc3 {[%emt 0:01:34]} Nd4 {[%emt 0:08:36]} 33. Nb5 {[%emt 0:00:42]} Nc6 {[%emt 0:00:10]} 34. Nc3 {[%emt 0:01:11]} Kd8 {[%emt 0:04:15]} 35. Nd5 {[%emt 0:00:39]} Rb8 {[%emt 0:00:50]} 36. Rc7 {[%emt 0:02:13]} Rc8 {[%emt 0:01:08]} 37. Rb7 {[%emt 0:00:01]} Rb8 {[%emt 0:01:12]} 38. Rc7 {[%emt 0:00:01]} Rc8 {[%emt 0:01:11]} 39. Rb7 {[%emt 0:00:01]} 1/2-1/2

[Event "Hunan Belt and Road Open 2019"]
[Site "Hunan"]
[Date "2019.08.04"]
[Round "7.25"]
[White "Yeoh, Li Tian"]
[Black "Batsiashvili, Nino"]
[Result "1-0"]
[ECO "A09"]
[WhiteElo "2528"]
[BlackElo "2433"]
[Annotator "ChessBase"]
[PlyCount "85"]
[EventDate "2019.07.29"]
[EventType "swiss"]
[EventCountry "CHN"]
[SourceTitle "playchess.com"]
[Source "ChessBase"]
[SourceQuality "1"]
[TimeControl "5400+30"]

1. Nf3 {[%emt 0:00:00]} d5 {[%emt 0:00:00]} 2. g3 {[%emt 0:00:00]} c5 {[%emt 0:00:00]} 3. c4 {[%emt 0:00:00]} d4 {[%emt 0:00:00]} 4. e3 {[%emt 0:00:07]} Nc6 {[%emt 0:00:34]} 5. exd4 {[%emt 0:00:09]} cxd4 {[%emt 0:00:52]} 6. Bg2 {[%emt 0:00:11]} e5 {[%emt 0:04:25]} 7. O-O {[%emt 0:00:54]} Bd6 {[%emt 0:00:04]} 8. Re1 {[%emt 0:00:52]} Nge7 {[%emt 0:02:35]} 9. d3 {[%emt 0:01:31]} Ng6 {[%emt 0:04:06]} 10. a3 {[%emt 0:05:11]} a5 {[%emt 0:00:27]} 11. Qc2 {[%emt 0:02:06]} Bg4 {[%emt 0:04:50]} 12. Nbd2 {[%emt 0:04:12]} O-O {[%emt 0:05:59]} 13. c5 {[%emt 0:02:38]} Be7 {[%emt 0:01:56]} 14. Nc4 {[%emt 0:10:26]} Bxf3 {[%emt 0:11:06]} 15. Bxf3 {[%emt 0:00:13]} Bxc5 {[%emt 0:00:03]} 16. Qb3 {[%emt 0:03:03]} Qe7 {[%emt 0:12:50]} 17. Bd2 {[%emt 0:02:31]} a4 {[%emt 0:03:12]} 18. Qb5 {[%emt 0:00:12]} Ra6 {[%emt 0:03:30]} 19. Rac1 {[%emt 0:22:54]} Rb8 {[%emt 0:02:08]} 20. Na5 {[%emt 0:02:28]} Nxa5 {[%emt 0:00:44]} 21. Bxa5 {[%emt 0:00:14]} Bd6 {[%emt 0:01:19]} 22. Bb6 {[%emt 0:00:25]} Raa8 {[%emt 0:06:19]} 23. Rc4 {[%emt 0:05:37]} Qg5 {[%emt 0:12:23]} 24. Kf1 {[%emt 0:08:57]} h5 {[%emt 0:08:18]} 25. h4 {[%emt 0:04:23]} Qf5 {[%emt 0:00:13]} 26. Be4 {[%emt 0:00:04]} Qh3+ {[%emt 0:03:00]} 27. Kg1 {[%emt 0:00:34]} Qg4 {[%emt 0:02:57]} 28. Qd5 {[%emt 0:07:43]} Be7 {[%emt 0:00:20]} 29. Bf3 {[%emt 0:00:52]} Qf5 {[%emt 0:01:35]} 30. Rec1 {[%emt 0:04:16]} Re8 {[%emt 0:03:43]} 31. Qe4 {[%emt 0:02:57]} Qe6 {[%emt 0:01:40]} 32. Bc7 {[%emt 0:00:17]} Ra7 {[%emt 0:03:10]} 33. Bxh5 {[%emt 0:07:45]} f5 {[%emt 0:00:02]} 34. Qg2 {[%emt 0:00:08]} Kh7 {[%emt 0:01:59]} 35. Bd1 {[%emt 0:01:11]} Bf6 {[%emt 0:00:22]} 36. Qf3 {[%emt 0:00:41]} Nf8 {[%emt 0:00:29]} 37. Rxa4 {[%emt 0:01:15]} Rea8 {[%emt 0:00:35]} 38. Rb4 {[%emt 0:00:20]} g6 {[%emt 0:00:17]} 39. Rb6 {[%emt 0:00:18]} Qe7 {[%emt 0:00:29]} 40. Bd6 {[%emt 0:00:05]} Qd8 {[%emt 0:00:21]} 41. Rc7+ {[%emt 0:00:31]} Kh6 {[%emt 0:00:39]} 42. Qd5 {[%emt 0:01:20]} Ra5 {[%emt 0:00:39]} 43. Qf7 {[%emt 0:00:20]} 1-0